[Event "Czech Youth U16 Boys 2024"]
[Site "Kouty nad Desnou"]
[Date "2024.03.10"]
[Round "2.4"]
[White "Hladky, Tadeas"]
[Black "Pressler, Tobias"]
[Result "1-0"]
[ECO "C43"]
[WhiteElo "2056"]
[BlackElo "1954"]
[Annotator "RC"]
[PlyCount "103"]
[EventDate "2024.03.10"]
[EventType "swiss"]
[EventCountry "CZE"]
[SourceTitle "playchess.com"]
[Source "ChessBase"]
[SourceQuality "1"]
[TimeControl "40/5400+30:1800+30"]

1. e4 {[%emt 0:00:03]} e5 {[%emt 0:00:34]} 2. Nf3 {[%emt 0:00:10]} Nf6 {[%emt 0:00:05]} 3. d4 {[%emt 0:00:16]} Nxe4 {[%emt 0:00:28]} 4. Bd3 {[%emt 0:00:17]} d5 {[%emt 0:00:42]} 5. Nxe5 {[%emt 0:00:17]} Be7 {[%emt 0:04:26]} 6. O-O {[%emt 0:02:00]} O-O {[%emt 0:00:35]} 7. Re1 {[%emt 0:08:40]} f6 {[%emt 0:05:41]} 8. Nf3 {[%emt 0:07:16]} Nd6 {[%emt 0:16:09]} 9. Bf4 {[%emt 0:04:30]} Bg4 {[%emt 0:04:09]} 10. Nbd2 {[%emt 0:05:37]} Nd7 {[%emt 0:02:16]} 11. c3 {[%emt 0:06:52]} Re8 {[%emt 0:07:44]} 12. Qb3 {[%emt 0:02:37]} Nb6 {[%emt 0:00:17]} 13. Qc2 {[%emt 0:00:11]} h6 {[%emt 0:02:39]} 14. Nh4 {[%emt 0:11:57]} Bh5 {[%emt 0:26:34]} 15. Bg6 {[%emt 0:10:43]} Bxg6 {[%emt 0:00:06]} 16. Qxg6 {[%emt 0:00:07]} Bf8 {[%emt 0:06:28]} 17. Bxh6 {[%emt 0:04:23]} Qd7 {[%emt 0:00:17]} 18. Bf4 {[%emt 0:02:54]} Qf7 {[%emt 0:00:48]} 19. Qd3 {[%emt 0:02:03]} Qh5 {[%emt 0:04:35]} 20. Nhf3 {[%emt 0:05:52]} c6 {[%emt 0:00:57]} 21. h3 {[%emt 0:01:52]} Rad8 {[%emt 0:04:08]} 22. b3 {[%emt 0:06:17]} Qf5 {[%emt 0:01:51]} 23. Qxf5 {[%emt 0:00:12]} Nxf5 {[%emt 0:00:05]} 24. Rxe8 {[%emt 0:03:18]} Rxe8 {[%emt 0:00:06]} 25. Re1 {[%emt 0:00:10]} Rxe1+ {[%emt 0:01:40]} 26. Nxe1 {[%emt 0:00:02]} Bd6 {[%emt 0:00:18]} 27. Nd3 {[%emt 0:02:38]} Kf7 {[%emt 0:02:22]} 28. Kf1 {[%emt 0:01:32]} a5 {[%emt 0:02:22]} 29. a4 {[%emt 0:02:25]} Nd7 {[%emt 0:01:24]} 30. Ke2 {[%emt 0:01:00]} b5 {[%emt 0:01:04]} 31. axb5 {[%emt 0:03:45]} cxb5 {[%emt 0:00:07]} 32. g4 {[%emt 0:00:04]} Bxf4 {[%emt 0:00:11]} 33. Nxf4 {[%emt 0:00:13]} Ne7 {[%emt 0:00:06]} 34. Kd3 {[%emt 0:00:54]} g5 {[%emt 0:00:07]} 35. Ne2 {[%emt 0:00:35]} Nb6 {[%emt 0:01:24]} 36. f4 {[%emt 0:01:44]} Nc6 {[%emt 0:01:18]} 37. Nf3 {[%emt 0:02:43]} gxf4 {[%emt 0:01:47]} 38. Nxf4 {[%emt 0:00:03]} a4 {[%emt 0:01:07]} 39. Kc2 {[%emt 0:00:42]} Na5 {[%emt 0:01:01]} 40. Nd2 {[%emt 0:01:25]} Nc6 {[%emt 0:01:43]} 41. bxa4 {[%emt 0:03:43]} bxa4 {[%emt 0:00:06]} 42. Kb2 {[%emt 0:00:17]} Ne7 {[%emt 0:01:45]} 43. Ka3 {[%emt 0:05:43]} Nc6 {[%emt 0:01:37]} 44. h4 {[%emt 0:01:23]} Kg7 {[%emt 0:00:11]} 45. Ne6+ {[%emt 0:00:43]} Kh6 {[%emt 0:00:18]} 46. Nc5 {[%emt 0:02:45]} f5 {[%emt 0:00:22]} 47. gxf5 {[%emt 0:01:08]} Kh5 {[%emt 0:00:08]} 48. Nxa4 {[%emt 0:02:07]} Nc8 {[%emt 0:00:12]} 49. Nf3 {[%emt 0:05:23]} Kg4 {[%emt 0:00:44]} 50. f6 {[%emt 0:00:15]} Nd6 {[%emt 0:00:18]} 51. Ng5 {[%emt 0:01:13]} Nd8 {[%emt 0:00:27]} 52. f7 {[%emt 0:00:38]} 1-0

[Event "Czech Youth U16 Boys 2024"]
[Site "Kouty nad Desnou"]
[Date "2024.03.10"]
[Round "2.5"]
[White "Vysinsky, Otakar"]
[Black "Hozda, Max"]
[Result "0-1"]
[ECO "B01"]
[WhiteElo "1882"]
[BlackElo "2032"]
[Annotator "RC"]
[PlyCount "68"]
[EventDate "2024.03.10"]
[EventType "swiss"]
[EventCountry "CZE"]
[SourceTitle "playchess.com"]
[Source "ChessBase"]
[SourceQuality "1"]
[TimeControl "40/5400+30:1800+30"]

1. e4 {[%emt 0:00:04]} d5 {[%emt 0:06:19]} 2. exd5 {[%emt 0:00:09]} Qxd5 {[%emt 0:00:06]} 3. Nc3 {[%emt 0:00:19]} Qe5+ {[%emt 0:02:58]} 4. Be2 {[%emt 0:03:23]} Bg4 {[%emt 0:00:35]} 5. d4 {[%emt 0:01:22]} Bxe2 {[%emt 0:00:13]} 6. Ngxe2 {[%emt 0:00:35]} Qa5 {[%emt 0:00:22]} 7. O-O {[%emt 0:03:34]} Nf6 {[%emt 0:00:16]} 8. Re1 {[%emt 0:04:10]} Nc6 {[%emt 0:02:11]} 9. Be3 {[%emt 0:08:38]} O-O-O {[%emt 0:06:35]} 10. Qc1 {[%emt 0:07:27]} e6 {[%emt 0:16:39]} 11. a3 {[%emt 0:07:42]} Bd6 {[%emt 0:04:55]} 12. Bf4 {[%emt 0:05:21]} Qf5 {[%emt 0:03:43]} 13. Bxd6 {[%emt 0:13:33]} Rxd6 {[%emt 0:00:14]} 14. Ng3 {[%emt 0:05:36]} Qg6 {[%emt 0:01:32]} 15. Nce2 {[%emt 0:03:24]} Nxd4 {[%emt 0:03:22]} 16. Nxd4 {[%emt 0:00:02]} Rxd4 {[%emt 0:00:15]} 17. c3 {[%emt 0:00:31]} Rd3 {[%emt 0:12:48]} 18. Re5 {[%emt 0:05:30]} Rhd8 {[%emt 0:02:03]} 19. Qf1 {[%emt 0:03:44]} Rd2 {[%emt 0:10:54]} 20. b4 {[%emt 0:04:50]} Qc2 {[%emt 0:06:57]} 21. Rc1 {[%emt 0:07:01]} Qb2 {[%emt 0:03:16]} 22. Ne2 {[%emt 0:03:27]} R8d3 {[%emt 0:07:55]} 23. h3 {[%emt 0:02:10]} Nd7 {[%emt 0:00:42]} 24. Re4 {[%emt 0:01:31]} Nf6 {[%emt 0:00:06]} 25. Re5 {[%emt 0:00:06]} Nd5 {[%emt 0:00:38]} 26. Re4 {[%emt 0:01:54]} Nxc3 {[%emt 0:01:48]} 27. Nxc3 {[%emt 0:00:38]} Rxc3 {[%emt 0:00:08]} 28. Rxc3 {[%emt 0:01:52]} Qxc3 {[%emt 0:00:03]} 29. Kh2 {[%emt 0:04:03]} Qxa3 {[%emt 0:02:34]} 30. Qb5 {[%emt 0:00:51]} Rd7 {[%emt 0:01:28]} 31. Rf4 {[%emt 0:01:05]} Qa6 {[%emt 0:02:19]} 32. Qh5 {[%emt 0:00:55]} Qd6 {[%emt 0:00:49]} 33. g3 {[%emt 0:00:11]} f6 {[%emt 0:01:16]} 34. Qxh7 {[%emt 0:01:02]} g5 {[%emt 0:00:19]} 0-1

[Event "Czech Youth U16 Boys 2024"]
[Site "Kouty nad Desnou"]
[Date "2024.03.10"]
[Round "2.6"]
[White "Prazak, Daniel"]
[Black "Juhanak, Daniel"]
[Result "1/2-1/2"]
[ECO "C07"]
[WhiteElo "2223"]
[BlackElo "2005"]
[Annotator "RC"]
[PlyCount "64"]
[EventDate "2024.03.10"]
[EventType "swiss"]
[EventCountry "CZE"]
[SourceTitle "playchess.com"]
[Source "ChessBase"]
[SourceQuality "1"]
[TimeControl "40/5400+30:1800+30"]

1. e4 {[%emt 0:00:03]} e6 {[%emt 0:00:09]} 2. d4 {[%emt 0:00:12]} d5 {[%emt 0:00:02]} 3. Nd2 {[%emt 0:02:11]} c5 {[%emt 0:00:16]} 4. Ngf3 {[%emt 0:00:56]} cxd4 {[%emt 0:00:44]} 5. Nxd4 {[%emt 0:00:13]} Nc6 {[%emt 0:00:26]} 6. Bb5 {[%emt 0:01:18]} Bd7 {[%emt 0:00:10]} 7. Nxc6 {[%emt 0:00:15]} bxc6 {[%emt 0:00:08]} 8. Bd3 {[%emt 0:00:20]} Bd6 {[%emt 0:03:42]} 9. Qe2 {[%emt 0:04:38]} e5 {[%emt 0:03:00]} 10. exd5 {[%emt 0:00:14]} cxd5 {[%emt 0:00:18]} 11. c4 {[%emt 0:00:08]} Ne7 {[%emt 0:11:07]} 12. O-O {[%emt 0:04:34]} O-O {[%emt 0:05:45]} 13. cxd5 {[%emt 0:01:53]} Nxd5 {[%emt 0:01:32]} 14. Ne4 {[%emt 0:02:52]} Be7 {[%emt 0:03:21]} 15. Rd1 {[%emt 0:04:36]} Be6 {[%emt 0:10:22]} 16. Bc4 {[%emt 0:04:33]} Qa5 {[%emt 0:02:52]} 17. Ng5 {[%emt 0:17:22]} Nf4 {[%emt 0:10:07]} 18. Bxf4 {[%emt 0:02:10]} Bxc4 {[%emt 0:01:25]} 19. Qxc4 {[%emt 0:00:11]} exf4 {[%emt 0:00:09]} 20. Ne4 {[%emt 0:22:40]} Rac8 {[%emt 0:06:51]} 21. Qe2 {[%emt 0:05:10]} Rfd8 {[%emt 0:04:25]} 22. a3 {[%emt 0:01:14]} Qe5 {[%emt 0:05:14]} 23. Rxd8+ {[%emt 0:04:05]} Rxd8 {[%emt 0:00:38]} 24. Re1 {[%emt 0:05:14]} f5 {[%emt 0:10:09]} 25. Nc3 {[%emt 0:03:26]} Qxe2 {[%emt 0:00:43]} 26. Rxe2 {[%emt 0:01:01]} Bf6 {[%emt 0:00:36]} 27. h3 {[%emt 0:02:56]} Bxc3 {[%emt 0:04:20]} 28. bxc3 {[%emt 0:00:04]} Rd1+ {[%emt 0:00:31]} 29. Kh2 {[%emt 0:00:07]} Ra1 {[%emt 0:00:58]} 30. Re8+ {[%emt 0:00:15]} Kf7 {[%emt 0:00:13]} 31. Re5 {[%emt 0:00:11]} Rxa3 {[%emt 0:02:58]} 32. Rxf5+ {[%emt 0:00:08]} Ke6 {[%emt 0:04:19]} 1/2-1/2

[Event "Czech Youth U16 Boys 2024"]
[Site "Kouty nad Desnou"]
[Date "2024.03.10"]
[Round "2.7"]
[White "Zrubek, Dan"]
[Black "Juracak, David"]
[Result "1/2-1/2"]
[ECO "C70"]
[WhiteElo "1882"]
[BlackElo "1944"]
[Annotator "RC"]
[PlyCount "67"]
[EventDate "2024.03.10"]
[EventType "swiss"]
[EventCountry "CZE"]
[SourceTitle "playchess.com"]
[Source "ChessBase"]
[SourceQuality "1"]
[TimeControl "40/5400+30:1800+30"]

1. e4 {[%emt 0:00:03]} e5 {[%emt 0:00:06]} 2. Nf3 {[%emt 0:00:09]} Nc6 {[%emt 0:00:15]} 3. Bb5 {[%emt 0:02:12]} a6 {[%emt 0:01:40]} 4. Ba4 {[%emt 0:00:35]} Bc5 {[%emt 0:02:03]} 5. O-O {[%emt 0:04:32]} Nge7 {[%emt 0:05:15]} 6. Re1 {[%emt 0:09:13]} O-O {[%emt 0:03:39]} 7. c3 {[%emt 0:03:49]} Ba7 {[%emt 0:07:12]} 8. d3 {[%emt 0:07:20]} Kh8 {[%emt 0:13:11]} 9. Qe2 {[%emt 0:05:22]} Ng6 {[%emt 0:05:58]} 10. Be3 {[%emt 0:04:06]} Bxe3 {[%emt 0:01:00]} 11. Qxe3 {[%emt 0:04:19]} f5 {[%emt 0:02:33]} 12. exf5 {[%emt 0:06:08]} Rxf5 {[%emt 0:00:39]} 13. d4 {[%emt 0:08:33]} d6 {[%emt 0:04:59]} 14. Bc2 {[%emt 0:04:20]} Rf6 {[%emt 0:00:08]} 15. Nbd2 {[%emt 0:02:05]} Bf5 {[%emt 0:02:00]} 16. Ne4 {[%emt 0:08:13]} exd4 {[%emt 0:03:23]} 17. Nxd4 {[%emt 0:04:01]} Bxe4 {[%emt 0:01:29]} 18. Bxe4 {[%emt 0:01:41]} Nge5 {[%emt 0:07:12]} 19. Bxc6 {[%emt 0:05:35]} bxc6 {[%emt 0:01:40]} 20. f4 {[%emt 0:03:41]} Nc4 {[%emt 0:00:27]} 21. Nxc6 {[%emt 0:01:40]} Qf8 {[%emt 0:01:41]} 22. Qe7 {[%emt 0:02:22]} Rxf4 {[%emt 0:04:44]} 23. Qxf8+ {[%emt 0:01:00]} Raxf8 {[%emt 0:00:08]} 24. b3 {[%emt 0:01:45]} Na3 {[%emt 0:11:11]} 25. Rf1 {[%emt 0:01:46]} Nb5 {[%emt 0:05:39]} 26. c4 {[%emt 0:01:50]} Nc3 {[%emt 0:00:27]} 27. Rxf4 {[%emt 0:01:27]} Rxf4 {[%emt 0:00:03]} 28. g3 {[%emt 0:00:50]} Re4 {[%emt 0:00:26]} 29. Rf1 {[%emt 0:00:57]} Kg8 {[%emt 0:00:16]} 30. Rf2 {[%emt 0:00:41]} h6 {[%emt 0:09:45]} 31. Rc2 {[%emt 0:01:29]} Nd1 {[%emt 0:00:30]} 32. Rd2 {[%emt 0:00:51]} Nc3 {[%emt 0:02:18]} 33. Nb4 {[%emt 0:01:12]} a5 {[%emt 0:00:31]} 34. Nd5 {[%emt 0:01:08]} 1/2-1/2

[Event "Czech Youth U16 Boys 2024"]
[Site "Kouty nad Desnou"]
[Date "2024.03.10"]
[Round "2.8"]
[White "Rybackova, Lucie"]
[Black "Dvorak, Jan"]
[Result "1/2-1/2"]
[ECO "A45"]
[WhiteElo "1983"]
[BlackElo "2154"]
[Annotator "RC"]
[PlyCount "64"]
[EventDate "2024.03.10"]
[EventType "swiss"]
[EventCountry "CZE"]
[SourceTitle "playchess.com"]
[Source "ChessBase"]
[SourceQuality "1"]
[TimeControl "40/5400+30:1800+30"]

1. d4 {[%emt 0:00:06]} Nf6 {[%emt 0:00:05]} 2. g3 {[%emt 0:00:12]} e6 {[%emt 0:00:45]} 3. Bg2 {[%emt 0:00:16]} d5 {[%emt 0:01:27]} 4. Nf3 {[%emt 0:00:44]} c5 {[%emt 0:02:47]} 5. O-O {[%emt 0:01:00]} Nc6 {[%emt 0:01:28]} 6. c4 {[%emt 0:01:14]} dxc4 {[%emt 0:06:38]} 7. Qa4 {[%emt 0:00:16]} Bd7 {[%emt 0:08:09]} 8. Qxc4 {[%emt 0:01:05]} Rc8 {[%emt 0:08:38]} 9. dxc5 {[%emt 0:09:33]} Na5 {[%emt 0:14:50]} 10. Qd3 {[%emt 0:08:34]} Bxc5 {[%emt 0:05:05]} 11. a3 {[%emt 0:11:27]} Qb6 {[%emt 0:07:58]} 12. Nc3 {[%emt 0:20:24]} Nb3 {[%emt 0:02:14]} 13. Rb1 {[%emt 0:03:32]} O-O {[%emt 0:04:07]} 14. Be3 {[%emt 0:08:10]} Bxe3 {[%emt 0:02:03]} 15. Qxe3 {[%emt 0:00:13]} Qxe3 {[%emt 0:01:37]} 16. fxe3 {[%emt 0:00:02]} Ng4 {[%emt 0:03:12]} 17. Rfd1 {[%emt 0:01:57]} Bc6 {[%emt 0:02:19]} 18. e4 {[%emt 0:06:06]} Ne3 {[%emt 0:02:19]} 19. Rd3 {[%emt 0:01:51]} Nxg2 {[%emt 0:00:12]} 20. Kxg2 {[%emt 0:00:14]} f6 {[%emt 0:04:15]} 21. Nd4 {[%emt 0:09:22]} Nxd4 {[%emt 0:02:24]} 22. Rxd4 {[%emt 0:00:02]} f5 {[%emt 0:03:20]} 23. Kg1 {[%emt 0:01:39]} e5 {[%emt 0:01:14]} 24. Rd3 {[%emt 0:02:18]} f4 {[%emt 0:03:09]} 25. g4 {[%emt 0:02:51]} Rfd8 {[%emt 0:03:06]} 26. Rbd1 {[%emt 0:00:48]} Rxd3 {[%emt 0:00:15]} 27. Rxd3 {[%emt 0:00:28]} Kf7 {[%emt 0:00:42]} 28. Kf2 {[%emt 0:00:39]} Ke6 {[%emt 0:03:45]} 29. h4 {[%emt 0:04:47]} b5 {[%emt 0:01:16]} 30. Kf3 {[%emt 0:02:01]} a6 {[%emt 0:00:43]} 31. Na2 Bb7 {[%emt 0:01:21]} 32. Rc3 {[%emt 0:03:05]} Rxc3+ {[%emt 0:02:16]} 1/2-1/2

[Event "Czech Youth U16 Boys 2024"]
[Site "Kouty nad Desnou"]
[Date "2024.03.10"]
[Round "2.9"]
[White "Andrle, Filip"]
[Black "Stein, Michael"]
[Result "1-0"]
[ECO "C15"]
[WhiteElo "1943"]
[BlackElo "1883"]
[Annotator "RC"]
[PlyCount "85"]
[EventDate "2024.03.10"]
[EventType "swiss"]
[EventCountry "CZE"]
[SourceTitle "playchess.com"]
[Source "ChessBase"]
[SourceQuality "1"]
[TimeControl "40/5400+30:1800+30"]

1. e4 {[%emt 0:00:04]} e6 {[%emt 0:00:04]} 2. d4 {[%emt 0:00:08]} d5 {[%emt 0:00:03]} 3. Nc3 {[%emt 0:00:11]} Bb4 {[%emt 0:00:04]} 4. exd5 {[%emt 0:00:36]} exd5 {[%emt 0:00:06]} 5. Bd3 {[%emt 0:00:11]} Nc6 {[%emt 0:00:42]} 6. Nf3 {[%emt 0:00:10]} Nge7 {[%emt 0:02:18]} 7. O-O {[%emt 0:05:36]} Bg4 {[%emt 0:04:27]} 8. a3 {[%emt 0:21:38]} Ba5 {[%emt 0:08:55]} 9. Be3 {[%emt 0:06:07]} Bb6 {[%emt 0:04:52]} 10. h3 {[%emt 0:03:10]} Bxf3 {[%emt 0:08:48]} 11. Qxf3 {[%emt 0:00:10]} Nxd4 {[%emt 0:07:18]} 12. Qg4 {[%emt 0:04:52]} Ne6 {[%emt 0:02:45]} 13. Bxb6 {[%emt 0:00:20]} axb6 {[%emt 0:00:33]} 14. f4 {[%emt 0:00:22]} h5 {[%emt 0:04:39]} 15. Qe2 {[%emt 0:07:28]} Qd6 {[%emt 0:03:28]} 16. Nb5 {[%emt 0:12:44]} Qc5+ {[%emt 0:02:06]} 17. Kh1 {[%emt 0:01:04]} Nd4 {[%emt 0:13:36]} 18. Nxd4 {[%emt 0:07:03]} Qxd4 {[%emt 0:00:08]} 19. Rf3 {[%emt 0:04:29]} Kd7 {[%emt 0:04:46]} 20. Re3 {[%emt 0:03:05]} Qf6 {[%emt 0:03:53]} 21. Re1 {[%emt 0:03:00]} Rae8 {[%emt 0:01:56]} 22. Re5 {[%emt 0:02:51]} c6 {[%emt 0:01:52]} 23. Qe3 {[%emt 0:02:06]} Qd6 {[%emt 0:05:23]} 24. Qxb6 {[%emt 0:02:50]} Qb8 {[%emt 0:02:10]} 25. Qe3 {[%emt 0:02:19]} Qd6 {[%emt 0:02:39]} 26. Qb6 {[%emt 0:04:39]} Qb8 {[%emt 0:00:38]} 27. Qb4 {[%emt 0:00:38]} Nc8 {[%emt 0:04:01]} 28. Bf5+ {[%emt 0:02:10]} Kd8 {[%emt 0:00:17]} 29. Bxc8 {[%emt 0:02:17]} Rxe5 {[%emt 0:00:24]} 30. Rxe5 {[%emt 0:01:07]} Kxc8 {[%emt 0:00:22]} 31. Re7 {[%emt 0:00:48]} f5 {[%emt 0:02:39]} 32. Qd4 {[%emt 0:01:20]} Rg8 {[%emt 0:01:08]} 33. c4 {[%emt 0:00:39]} Qd6 {[%emt 0:01:19]} 34. Re5 {[%emt 0:00:20]} g5 {[%emt 0:00:31]} 35. cxd5 {[%emt 0:00:30]} gxf4 {[%emt 0:00:37]} 36. Qxf4 {[%emt 0:00:15]} Qc5 {[%emt 0:01:19]} 37. Qxf5+ {[%emt 0:00:19]} Kb8 {[%emt 0:00:10]} 38. Qf4 {[%emt 0:00:46]} Ka8 {[%emt 0:00:48]} 39. Qa4+ {[%emt 0:00:17]} Kb8 {[%emt 0:00:12]} 40. Qf4 {[%emt 0:00:23]} Ka8 {[%emt 0:00:13]} 41. dxc6 {[%emt 0:30:43]} Qb6 {[%emt 0:30:52]} 42. cxb7+ {[%emt 0:00:15]} Kxb7 {[%emt 0:00:52]} 43. Qf7+ {[%emt 0:00:09]} 1-0

[Event "Czech Youth U16 Boys 2024"]
[Site "Kouty nad Desnou"]
[Date "2024.03.10"]
[Round "2.10"]
[White "Buchtova, Viktorie"]
[Black "Tegda, Vojtech"]
[Result "1-0"]
[ECO "B76"]
[WhiteElo "1874"]
[BlackElo "1936"]
[Annotator "RC"]
[PlyCount "49"]
[EventDate "2024.03.10"]
[EventType "swiss"]
[EventCountry "CZE"]
[SourceTitle "playchess.com"]
[Source "ChessBase"]
[SourceQuality "1"]
[TimeControl "40/5400+30:1800+30"]

1. e4 {[%emt 0:00:02]} c5 {[%emt 0:00:10]} 2. Nf3 {[%emt 0:00:04]} d6 {[%emt 0:01:06]} 3. d4 {[%emt 0:00:04]} cxd4 {[%emt 0:00:13]} 4. Nxd4 {[%emt 0:00:02]} Nf6 {[%emt 0:01:21]} 5. Nc3 {[%emt 0:00:11]} g6 {[%emt 0:01:30]} 6. Be3 {[%emt 0:00:59]} Bg7 {[%emt 0:01:07]} 7. f3 {[%emt 0:00:07]} O-O {[%emt 0:01:43]} 8. Bc4 {[%emt 0:01:03]} Nc6 {[%emt 0:01:47]} 9. Bb3 {[%emt 0:00:06]} Bd7 {[%emt 0:01:19]} 10. Qd2 {[%emt 0:00:13]} Na5 {[%emt 0:00:47]} 11. h4 {[%emt 0:00:38]} Nxb3 {[%emt 0:01:18]} 12. cxb3 {[%emt 0:05:40]} h5 {[%emt 0:14:06]} 13. O-O-O {[%emt 0:02:24]} a6 {[%emt 0:01:26]} 14. Kb1 {[%emt 0:01:07]} b5 {[%emt 0:03:26]} 15. g4 {[%emt 0:03:39]} hxg4 {[%emt 0:04:54]} 16. h5 {[%emt 0:03:53]} gxh5 {[%emt 0:12:37]} 17. Bh6 {[%emt 0:06:28]} e5 {[%emt 0:08:34]} 18. Bxg7 {[%emt 0:13:52]} Kxg7 {[%emt 0:00:05]} 19. Qg5+ {[%emt 0:00:47]} Kh8 {[%emt 0:01:36]} 20. Nd5 {[%emt 0:00:59]} Rg8 {[%emt 0:07:33]} 21. Qh6+ {[%emt 0:00:36]} Nh7 {[%emt 0:00:09]} 22. Rxh5 {[%emt 0:00:30]} Rg7 {[%emt 0:00:17]} 23. Nf6 {[%emt 0:00:24]} exd4 {[%emt 0:01:46]} 24. Qxh7+ {[%emt 0:00:16]} Rxh7 {[%emt 0:00:04]} 25. Rxh7# {[%emt 0:00:04]} 1-0

[Event "Czech Youth U16 Boys 2024"]
[Site "Kouty nad Desnou"]
[Date "2024.03.10"]
[Round "2.11"]
[White "Ulcak, Michael"]
[Black "Zemek, Antonin"]
[Result "1/2-1/2"]
[ECO "C07"]
[WhiteElo "1929"]
[BlackElo "1870"]
[Annotator "RC"]
[PlyCount "72"]
[EventDate "2024.03.10"]
[EventType "swiss"]
[EventCountry "CZE"]
[SourceTitle "playchess.com"]
[Source "ChessBase"]
[SourceQuality "1"]
[TimeControl "40/5400+30:1800+30"]

1. e4 {[%emt 0:00:35]} e6 {[%emt 0:00:35]} 2. d4 {[%emt 0:00:12]} d5 {[%emt 0:00:40]} 3. Nd2 {[%emt 0:00:17]} c5 {[%emt 0:00:17]} 4. exd5 {[%emt 0:00:18]} Qxd5 {[%emt 0:00:28]} 5. Ngf3 {[%emt 0:00:53]} cxd4 {[%emt 0:01:21]} 6. Bc4 {[%emt 0:02:09]} Qd6 {[%emt 0:01:09]} 7. O-O {[%emt 0:00:30]} Nf6 {[%emt 0:01:42]} 8. Re1 {[%emt 0:01:19]} Nc6 {[%emt 0:04:20]} 9. Nb3 {[%emt 0:00:18]} Bd7 {[%emt 0:02:40]} 10. Nbxd4 {[%emt 0:02:28]} Nxd4 {[%emt 0:00:38]} 11. Qxd4 {[%emt 0:01:28]} Qxd4 {[%emt 0:00:52]} 12. Nxd4 {[%emt 0:01:05]} Bc5 {[%emt 0:06:19]} 13. Nf3 {[%emt 0:04:53]} Ng4 {[%emt 0:07:19]} 14. Re2 {[%emt 0:02:20]} Bc6 {[%emt 0:13:39]} 15. h3 {[%emt 0:04:55]} Bxf3 {[%emt 0:07:15]} 16. gxf3 {[%emt 0:00:31]} Nf6 {[%emt 0:01:04]} 17. Bb5+ {[%emt 0:06:03]} Ke7 {[%emt 0:02:59]} 18. Bg5 {[%emt 0:02:23]} Rhd8 {[%emt 0:03:37]} 19. f4 {[%emt 0:05:59]} h6 {[%emt 0:03:25]} 20. Bh4 {[%emt 0:01:21]} a6 {[%emt 0:06:14]} 21. Bd3 {[%emt 0:02:40]} Rd4 {[%emt 0:00:59]} 22. Re5 {[%emt 0:18:20]} Bd6 {[%emt 0:03:23]} 23. Bxf6+ {[%emt 0:01:23]} Kxf6 {[%emt 0:00:16]} 24. Re4 {[%emt 0:00:19]} Rd5 {[%emt 0:03:48]} 25. Rae1 {[%emt 0:07:27]} Rd8 {[%emt 0:04:07]} 26. Rc4 {[%emt 0:03:55]} Bc5 {[%emt 0:03:54]} 27. Be4 {[%emt 0:04:31]} Rd1 {[%emt 0:00:58]} 28. Rxd1 {[%emt 0:01:37]} Rxd1+ {[%emt 0:00:13]} 29. Kg2 {[%emt 0:00:26]} b6 {[%emt 0:01:26]} 30. b4 {[%emt 0:04:15]} Rd4 {[%emt 0:00:21]} 31. Rxd4 {[%emt 0:01:17]} Bxd4 {[%emt 0:04:50]} 32. Bd3 {[%emt 0:03:10]} a5 {[%emt 0:01:29]} 33. bxa5 {[%emt 0:00:21]} bxa5 {[%emt 0:00:07]} 34. a4 {[%emt 0:03:56]} e5 {[%emt 0:03:31]} 35. fxe5+ {[%emt 0:00:46]} Kxe5 {[%emt 0:00:10]} 36. Kg3 {[%emt 0:02:00]} g5 {[%emt 0:02:35]} 1/2-1/2

[Event "Czech Youth U16 Boys 2024"]
[Site "Kouty nad Desnou"]
[Date "2024.03.10"]
[Round "2.12"]
[White "Zezula, Matej"]
[Black "Buchta, Bartolomej"]
[Result "0-1"]
[ECO "B51"]
[WhiteElo "1825"]
[BlackElo "1913"]
[Annotator "RC"]
[PlyCount "68"]
[EventDate "2024.03.10"]
[EventType "swiss"]
[EventCountry "CZE"]
[SourceTitle "playchess.com"]
[Source "ChessBase"]
[SourceQuality "1"]
[TimeControl "40/5400+30:1800+30"]

1. e4 {[%emt 0:00:05]} c5 {[%emt 0:00:05]} 2. Nf3 {[%emt 0:00:25]} d6 {[%emt 0:00:06]} 3. Bb5+ {[%emt 0:00:09]} Nd7 {[%emt 0:00:14]} 4. O-O {[%emt 0:01:12]} a6 {[%emt 0:06:12]} 5. Bd3 {[%emt 0:00:21]} g6 {[%emt 0:01:07]} 6. Re1 {[%emt 0:03:33]} Bg7 {[%emt 0:00:13]} 7. c3 {[%emt 0:01:39]} b5 {[%emt 0:01:00]} 8. Bc2 {[%emt 0:00:56]} Bb7 {[%emt 0:00:09]} 9. d4 {[%emt 0:02:04]} cxd4 {[%emt 0:00:41]} 10. cxd4 {[%emt 0:01:31]} Rc8 {[%emt 0:00:42]} 11. Nbd2 {[%emt 0:03:59]} Ngf6 {[%emt 0:02:37]} 12. Nb3 {[%emt 0:16:46]} O-O {[%emt 0:05:42]} 13. Bd2 {[%emt 0:01:02]} Nb6 {[%emt 0:05:46]} 14. Ba5 {[%emt 0:02:16]} Nfd7 {[%emt 0:01:41]} 15. Qe2 {[%emt 0:04:47]} Qc7 {[%emt 0:03:00]} 16. Bd3 {[%emt 0:01:39]} Qb8 {[%emt 0:01:35]} 17. Nbd2 {[%emt 0:03:38]} Na4 {[%emt 0:21:39]} 18. Nf1 {[%emt 0:04:32]} Qa7 {[%emt 0:01:03]} 19. b3 {[%emt 0:06:58]} Nc3 {[%emt 0:07:09]} 20. Qb2 {[%emt 0:03:56]} Bxd4 {[%emt 0:02:21]} 21. Rac1 {[%emt 0:00:45]} Nd1 {[%emt 0:21:58]} 22. Qxd4 {[%emt 0:04:24]} Qxd4 {[%emt 0:00:04]} 23. Nxd4 {[%emt 0:00:11]} Rxc1 {[%emt 0:00:04]} 24. Ne2 {[%emt 0:15:52]} Ra1 {[%emt 0:01:05]} 25. Bd2 {[%emt 0:05:09]} Rc8 {[%emt 0:05:09]} 26. f3 {[%emt 0:04:38]} Ne5 {[%emt 0:01:46]} 27. Nc1 {[%emt 0:05:47]} Raxc1 {[%emt 0:03:06]} 28. Be2 {[%emt 0:01:50]} Nc3 {[%emt 0:01:04]} 29. Bxc1 {[%emt 0:01:52]} Nxe2+ {[%emt 0:00:08]} 30. Rxe2 {[%emt 0:00:56]} Rxc1 {[%emt 0:00:04]} 31. Kf2 {[%emt 0:01:04]} Nd3+ {[%emt 0:00:24]} 32. Ke3 {[%emt 0:00:44]} Rxf1 {[%emt 0:01:02]} 33. Kxd3 {[%emt 0:00:03]} Rc1 {[%emt 0:00:09]} 34. Kd2 {[%emt 0:00:32]} Rc5 {[%emt 0:00:17]} 0-1